bitfinex-derivatives/quotes_SOLF0:USTF0_20250530
["timestamp","ask_amount","ask_price","bid_price","bid_amount"]
[1748601362388,0.04543737,162.96,162.95,6.1353]
[1748601362587,31.78,163.0,162.94,6.76261997]
[1748601363185,37.9134,163.0,162.97,6.1342]
[1748601363391,31.78,163.0,162.94,6.76261997]
[1748601363582,0.04635919,162.99,162.97,6.76261997]
[1748601363788,0.04282052,163.0,162.97,127.20261997]
[1748601364181,0.04282052,163.0,162.97,120.44]
[1748601364387,0.04282052,163.0,162.96,0.03933762]
[1748601364697,6.1345,162.97,162.96,0.03933762]
[1748601364892,31.78,162.99,162.9,6.1675]
[1748601365092,33.7835,162.99,162.9,6.1675]
[1748601365294,33.7835,162.99,162.91,6.1364]
[1748601365993,6.1359,162.94,162.93,0.03944108]
[1748601367692,0.04175125,162.97,162.93,0.03944108]
[1748601368096,6.1352,162.96,162.93,0.03944108]
[1748601368394,0.04175125,162.97,162.93,0.03944108]
[1748601368586,6.17625125,162.97,162.94,6.1354]
[1748601369190,0.04175125,162.97,162.95,6.1352]
[1748601369487,0.04175125,162.97,162.93,0.03944108]
[1748601370291,6.17645125,162.97,162.93,0.03944108]
[1748601371091,6.135,162.96,162.93,0.03944108]
[1748601371796,6.17645125,162.97,162.94,6.1356]
[1748601374899,0.04175125,162.97,162.93,0.03944108]
[1748601375497,0.04175125,162.97,162.95,6.1349]
[1748601375800,0.04175125,162.97,162.93,0.03944108]
[1748601376800,0.04175125,162.97,162.96,6.1349]
[1748601377901,0.04175125,162.97,162.95,6.1351]
[1748601378095,6.17625125,162.97,162.93,0.03944108]
[1748601379393,6.17625125,162.97,162.95,6.1351]
[1748601379801,0.04175125,162.97,162.96,6.1349]
[1748601380396,0.04175125,162.97,162.93,0.03944108]
[1748601380397,0.04175125,162.97,162.93,6.17534108]
[1748601380803,0.04175125,162.97,162.93,0.03944108]
[1748601381600,0.04175125,162.97,162.94,6.1355]
[1748601382103,6.17645125,162.97,162.94,6.1355]
[1748601382403,6.17645125,162.97,162.95,6.1352]
[1748601382601,0.04175125,162.97,162.93,0.03944108]
[1748601383605,0.04175125,162.97,162.96,6.1349]
[1748601386804,0.04175125,162.97,162.95,6.1351]
[1748601387399,0.04175125,162.97,162.96,6.1349]
[1748601390309,31.72,163.04,163.0,6.1332]
[1748601390509,31.72,163.04,162.95,6.76261997]
[1748601390708,31.72,163.04,162.96,31.72]
[1748601390905,31.72,163.04,163.0,6.1331]
[1748601391410,6.1325,163.03,163.0,6.17447358]
[1748601392199,37.89514001,163.04,163.01,6.1329]
[1748601392398,31.76304001,163.04,163.0,0.04137358]
[1748601392602,0.04304001,163.04,163.0,0.04137358]
[1748601392807,0.04304001,163.04,163.03,6.1323]
[1748601394202,31.7,163.1,163.06,6.1311]
[1748601394408,31.7,163.1,163.01,6.76261997]
[1748601394599,31.7,163.1,163.03,6.132]
[1748601394796,31.7,163.1,163.01,6.76261997]
[1748601395199,0.03957616,163.07,163.04,6.17589869]
[1748601395909,0.03957616,163.07,163.05,6.1314]
[1748601396802,0.03957616,163.07,163.06,6.1311]
[1748601397112,31.7,163.14,163.05,31.7]
[1748601397512,31.7,163.14,163.06,62.0]
[1748601397905,31.7,163.14,163.05,31.7]
[1748601398104,0.04531785,163.11,163.08,0.04351945]
[1748601398306,6.1302,163.09,163.08,0.04351945]
[1748601398506,0.04531785,163.11,163.08,0.04351945]
[1748601398712,6.1299,163.1,163.08,0.04351945]
[1748601399104,0.04531785,163.11,163.08,0.04351945]
[1748601399504,6.17471785,163.11,163.08,0.04351945]
[1748601400216,0.04531785,163.11,163.08,0.04351945]
[1748601400615,6.13,163.09,163.08,0.04351945]
[1748601400911,0.04531785,163.11,163.08,0.04351945]
[1748601401314,6.1298,163.1,163.08,0.04351945]
[1748601401509,0.04531785,163.11,163.08,0.04351945]
[1748601402413,31.68,163.1,163.08,0.04351945]
[1748601402913,6.13,163.09,163.08,0.04351945]
[1748601403110,6.13,163.09,163.03,12.89471997]
[1748601403111,31.68,163.1,163.0,6.76261997]
[1748601403308,2.031,163.09,162.99,245.19867167]
[1748601404007,6.1314,163.06,163.02,6.1324]
[1748601404207,6.17114509,163.06,163.02,6.17218358]
[1748601404617,6.17114509,163.06,163.03,6.1322]
[1748601404915,0.03974509,163.06,163.02,0.03978358]
[1748601405108,31.71974509,163.06,163.02,0.03978358]
[1748601405412,6.1317,163.05,163.02,0.03978358]
[1748601405616,6.1317,163.05,163.02,6.17218358]
[1748601407306,37.85104509,163.06,163.03,6.1321]
[1748601408117,6.1316,163.05,163.02,6.17228358]
[1748601408317,31.71974509,163.06,163.02,0.03978358]
[1748601409012,6.1316,163.05,163.02,0.03978358]
[1748601410113,6.1316,163.05,163.02,6.17228358]
[1748601410409,6.1316,163.05,163.02,0.03978358]
[1748601410618,6.1316,163.05,163.02,6.17228358]
[1748601411009,31.71974509,163.06,163.05,6.1315]
[1748601411211,0.03974509,163.06,163.05,6.1315]
[1748601411911,31.68,163.12,163.05,127.08261997]
[1748601412311,6.1294,163.11,163.08,6.1303]
[1748601412914,6.1299,163.1,163.08,0.04695671]
[1748601413516,6.1299,163.1,163.08,6.17735671]
[1748601413818,6.17376134,163.11,163.08,6.17735671]
[1748601414413,0.04436134,163.11,163.09,6.1299]
[1748601415216,6.17366134,163.11,163.08,6.17715671]
[1748601415711,0.04436134,163.11,163.08,0.04695671]
[1748601416314,31.68,163.15,163.08,6.80957668]
[1748601417213,6.1281,163.14,163.11,6.1291]
[1748601417420,6.17145666,163.14,163.11,6.1708621]
[1748601418810,0.04335666,163.14,163.11,0.0417621]
[1748601419918,0.04335666,163.14,163.12,6.1286]
[1748601420420,0.04335666,163.14,163.13,6.1285]
[1748601421318,0.04335666,163.14,163.12,126.3888]
[1748601421519,0.04335666,163.14,163.12,120.26]
[1748601421709,0.04335666,163.14,163.11,0.0417621]
[1748601422122,0.04335666,163.14,163.11,6.1707621]
[1748601422516,6.17165666,163.14,163.11,6.1707621]
[1748601423126,0.04335666,163.14,163.12,6.1288]
[1748601424116,0.04335666,163.14,163.11,6.1708621]
[1748601424625,6.17155666,163.14,163.11,6.1708621]
[1748601424818,0.04335666,163.14,163.12,6.1288]
[1748601425219,0.04335666,163.14,163.11,0.0417621]
[1748601425419,0.04335666,163.14,163.11,6.1709621]
[1748601425723,6.17155666,163.14,163.11,6.1709621]
[1748601426119,0.04335666,163.14,163.11,0.0417621]
[1748601426324,6.1289,163.12,163.11,0.0417621]
[1748601426524,31.70335666,163.14,163.11,0.0417621]
[1748601426926,0.04335666,163.14,163.11,0.0417621]
[1748601427924,0.04335666,163.14,163.13,6.1285]
[1748601430933,33.6959,163.2,163.16,6.1271]
[1748601431239,6.1264,163.19,163.16,6.1271]
[1748601431932,6.1264,163.19,163.16,6.16788004]
[1748601434436,37.766,163.2,163.17,6.1266]
[1748601434742,37.766,163.2,163.16,0.04078004]
[1748601434743,31.64,163.2,163.16,0.04078004]
[1748601435242,31.64,163.2,163.18,6.1263]
[1748601435744,31.64,163.2,163.19,6.1262]
[1748601436242,31.64,163.23,163.16,0.04078004]
[1748601436834,6.1256,163.21,163.18,6.1264]
[1748601437344,6.1256,163.21,163.19,6.1262]
[1748601437548,31.64,163.23,163.16,0.04078004]
[1748601437943,37.7649,163.23,163.2,6.1256]
[1748601438246,31.64,163.23,163.2,0.04407116]
[1748601438544,31.64,163.26,163.2,0.04407116]
[1748601438840,31.64,163.29,163.21,6.76261997]
[1748601439034,31.64,163.29,163.23,0.03871974]
[1748601439241,37.7627,163.29,163.26,6.1236]
[1748601439746,31.64,163.29,163.24,6.76261997]
[1748601440339,31.64,163.29,163.27,6.123]
[1748601440942,6.1221,163.3,163.27,6.123]
[1748601441244,6.1221,163.3,163.28,6.1229]
[1748601441444,6.1221,163.3,163.26,0.04505777]
[1748601441638,35.7357,163.32,163.26,6.16845777]
[1748601441639,6.1226,163.29,163.26,6.16845777]
[1748601442144,6.1223,163.3,163.27,6.1231]
[1748601442547,35.7357,163.32,163.27,6.1231]
[1748601442940,35.7357,163.32,163.26,0.04505777]
[1748601443451,31.62,163.32,163.26,0.04505777]
[1748601444142,6.1219,163.31,163.28,6.1228]
[1748601444334,6.1219,163.31,163.26,0.04505777]
[1748601444742,6.1219,163.31,163.27,6.1229]
[1748601444941,6.1219,163.31,163.26,0.04505777]
[1748601445649,31.62,163.32,163.26,0.04505777]
[1748601446845,6.123,163.28,163.26,0.04505777]
[1748601447541,31.62,163.32,163.26,0.04505777]
[1748601447738,31.62,163.34,163.26,0.04505777]
[1748601447938,31.62,163.34,163.28,0.04007488]
[1748601448137,6.1223,163.3,163.28,0.04007488]
[1748601448337,31.62,163.34,163.28,0.04007488]
[1748601448749,6.1223,163.3,163.28,0.04007488]
[1748601448943,3.9178,163.36,163.28,0.04007488]
[1748601449143,38.38261997,163.35,163.22,6.76261997]
[1748601449446,6.1235,163.27,163.24,6.1241]
[1748601449844,31.62,163.29,163.25,6.124]
[1748601450246,31.65964593,163.29,163.25,6.16676473]
[1748601450450,6.1229,163.28,163.25,6.16676473]
[1748601450650,31.65964593,163.29,163.25,0.04276473]
[1748601451847,31.65964593,163.29,163.25,6.16676473]
[1748601452050,31.65964593,163.29,163.25,0.04276473]
[1748601452250,37.78244593,163.29,163.25,0.04276473]
[1748601452658,37.78244593,163.29,163.26,6.1236]
[1748601453752,6.1229,163.28,163.26,6.1236]
[1748601454147,31.65964593,163.29,163.25,0.04276473]
[1748601454752,6.1236,163.27,163.25,0.04276473]
[1748601455650,6.1236,163.26,163.25,0.04276473]
[1748601455947,38.4222659,163.29,163.12,12.2577]
[1748601456164,6.1261,163.2,163.17,6.1268]
[1748601456348,31.62,163.21,163.17,6.1268]
[1748601456653,31.62,163.21,163.18,6.1265]
[1748601456847,31.66396973,163.21,163.18,0.03973477]
[1748601457057,0.04396973,163.21,163.18,0.03973477]
[1748601457252,0.04396973,163.21,163.19,6.126]
[1748601457561,0.04396973,163.21,163.18,0.03973477]
[1748601459155,6.16966973,163.21,163.18,6.16633477]
[1748601459355,0.04396973,163.21,163.18,0.03973477]
[1748601459853,6.16966973,163.21,163.18,6.16623477]
[1748601460656,6.16966973,163.21,163.19,6.1262]
[1748601460952,6.1259,163.2,163.18,0.03973477]
[1748601461257,0.04396973,163.21,163.18,0.03973477]
[1748601461758,0.04396973,163.21,163.18,6.16593477]
[1748601461952,6.16966973,163.21,163.18,6.16593477]
[1748601462256,6.16966973,163.21,163.19,6.1262]
[1748601462454,0.04396973,163.21,163.19,6.1262]
[1748601462847,0.04396973,163.21,163.18,0.03973477]
[1748601463361,0.04396973,163.21,163.2,6.1259]
[1748601465159,0.04396973,163.21,163.18,0.03973477]
[1748601465562,6.16966973,163.21,163.18,0.03973477]
[1748601465856,6.16966973,163.21,163.18,6.16633477]
[1748601466453,6.1259,163.2,163.18,0.03973477]
[1748601466752,0.04396973,163.21,163.04,19.02571997]
[1748601466753,31.6,163.19,163.04,19.02571997]
[1748601466952,31.6,163.19,163.08,38.36261997]
[1748601467152,2.0906,163.18,163.11,6.1292]
[1748601467861,0.04610737,163.16,163.13,0.04154758]
[1748601468456,0.04610737,163.16,163.13,6.16984758]
[1748601468655,6.1278,163.15,163.13,0.04154758]
[1748601468849,0.04610737,163.16,163.13,0.04154758]
[1748601469055,6.128,163.15,163.13,0.04154758]
[1748601469457,0.04610737,163.16,163.13,0.04154758]
[1748601469964,6.1277,163.15,163.13,0.04154758]
[1748601470566,6.1281,163.14,163.13,0.04154758]
[1748601470760,31.6,163.15,163.05,6.1903]
[1748601470959,31.6,163.15,163.05,4.0498]
[1748601471264,1.961,163.14,163.04,38.36261997]
[1748601471855,6.1701866,163.11,163.08,6.1301]
[1748601475665,0.0408866,163.11,163.07,0.04450281]
[1748601477160,0.0408866,163.11,163.09,6.1299]
[1748601479066,6.1701866,163.11,163.09,6.1299]
[1748601479864,0.0408866,163.11,163.09,6.1299]
[1748601480167,0.0408866,163.11,163.07,0.04450281]
[1748601480561,0.0408866,163.11,163.1,6.1296]
[1748601480865,0.0408866,163.11,163.07,0.04450281]
[1748601481166,6.1701866,163.11,163.08,6.1301]
[1748601481364,6.1701866,163.11,163.07,0.04450281]
[1748601481669,6.1301,163.09,163.07,0.04450281]
[1748601481864,31.62,163.1,163.07,0.04450281]
[1748601482266,31.62,163.1,163.0,6.0513]
[1748601482562,31.62,163.1,162.94,12.2707]
[1748601482563,2.0617,163.09,162.96,6.76261997]
[1748601482768,6.1325,163.03,162.96,6.76261997]
[1748601482967,6.1325,163.03,162.95,158.52261997]
[1748601483566,0.04370476,163.01,162.99,6.1335]
[1748601483770,0.04370476,163.01,162.97,0.03918433]
[1748601484070,0.04370476,163.01,163.0,6.1334]
[1748601485568,31.62,163.04,163.03,6.1322]
[1748601485766,31.62,163.07,162.99,4.1055]
[1748601486268,31.62,163.07,163.05,6.1313]
[1748601487367,31.62,163.07,163.04,6.17509481]
[1748601488764,37.751,163.07,163.04,6.17509481]
[1748601488965,31.62,163.07,163.04,0.04329481]
[1748601489369,6.1313,163.06,163.04,0.04329481]
[1748601490164,6.1315,163.05,163.04,0.04329481]
[1748601491872,2.1572,163.06,162.96,31.6]
[1748601492060,4.1446,163.06,162.96,31.6]
[1748601492260,6.1324,163.03,162.96,31.6]
[1748601492463,31.6,163.03,162.96,31.6]
[1748601492868,0.04305038,163.01,162.98,0.03971559]
[1748601494076,6.1336,163.0,162.98,0.03971559]
[1748601494271,0.04305038,163.01,162.98,0.03971559]
[1748601495175,6.1337,162.99,162.98,0.03971559]
[1748601495575,6.1345,162.97,162.94,6.1353]
[1748601495779,31.6,162.99,162.91,6.76261997]
[1748601496376,4.1446,163.06,162.94,6.76261997]
[1748601496679,0.04310834,163.02,162.98,0.04272666]
[1748601497370,6.17590834,163.02,162.99,6.1335]
[1748601498476,0.04310834,163.02,162.98,0.04272666]
[1748601499182,6.17570834,163.02,162.99,6.1335]
[1748601500173,6.1331,163.01,162.98,6.17672666]
[1748601501281,6.17590834,163.02,162.99,6.1337]
[1748601501475,0.04310834,163.02,162.98,0.04272666]
[1748601502384,0.04310834,163.02,163.01,6.133]
[1748601504477,37.7505,163.08,162.99,68.76261997]
[1748601504975,37.7505,163.08,163.05,6.1312]
[1748601505178,6.1309,163.07,162.99,68.76261997]
[1748601505377,0.04610134,163.05,163.01,0.04260557]
[1748601505580,0.04610134,163.05,163.04,6.1319]
[1748601512181,0.04610134,163.05,163.03,6.1321]
[1748601512983,0.04610134,163.05,163.01,0.04260557]
[1748601512984,0.04610134,163.05,163.01,6.17520557]
[1748601513187,31.6,163.04,163.01,0.04260557]
[1748601514185,6.1326,163.02,163.01,0.04260557]
[1748601516780,31.6,163.04,163.01,0.04260557]
[1748601516781,6.1324,163.03,163.01,0.04260557]
[1748601517588,37.732,163.04,163.01,6.17550557]
[1748601518290,6.1323,163.03,163.01,0.04260557]
[1748601518792,6.1323,163.03,163.01,6.17560557]
[1748601519587,31.6,163.04,163.01,0.04260557]
[1748601520589,0.04610134,163.05,163.01,0.04260557]
[1748601521094,0.04610134,163.05,163.03,6.1321]
[1748601521492,0.04610134,163.05,163.01,0.04260557]
[1748601521687,0.04610134,163.05,163.04,6.1319]
[1748601522891,0.04610134,163.05,163.03,6.1321]
[1748601523589,0.04610134,163.05,163.04,6.1319]
[1748601533287,37.7302,163.09,163.02,6.76261997]
[1748601533288,31.6,163.09,163.08,6.1304]
[1748601533800,6.1294,163.11,163.08,6.1304]
[1748601534102,31.6,163.12,163.05,6.76261997]
[1748601534303,0.0468844,163.1,163.07,0.04059932]
[1748601535295,0.0468844,163.1,163.09,6.1296]
[1748601540500,31.6,163.15,163.08,6.76261997]
[1748601541402,0.04195328,163.13,163.08,6.76261997]
[1748601541802,0.04195328,163.13,163.07,31.64059932]
[1748601542108,0.04195328,163.13,163.07,0.04059932]
[1748601543011,6.1304,163.08,163.07,0.04059932]
[1748601543913,6.1319,163.04,163.01,31.58]
[1748601544209,31.58,163.09,163.0,214.90712851]
[1748601544603,6.1316,163.05,163.02,6.1324]
[1748601544803,0.04005495,163.05,163.02,0.04539443]
[1748601545308,0.04005495,163.05,163.04,6.1319]
[1748601546605,0.04005495,163.05,163.02,0.04539443]
[1748601547404,0.04005495,163.05,163.04,6.1319]
[1748601554215,0.04005495,163.05,163.03,6.1321]
[1748601554608,0.04005495,163.05,163.02,0.04539443]
[1748601555005,0.04005495,163.05,163.02,6.17779443]
[1748601555412,6.1319,163.04,163.02,6.17779443]
[1748601555613,0.04005495,163.05,163.03,6.1322]
[1748601556107,6.17155495,163.05,163.03,6.1322]
[1748601557109,6.17155495,163.05,163.02,6.17789443]
[1748601557412,6.1319,163.04,163.02,6.17789443]
[1748601557610,0.04005495,163.05,163.02,6.17789443]
[1748601558311,6.17175495,163.05,163.03,6.1322]
[1748601559321,6.1319,163.04,163.02,6.17779443]
[1748601559722,0.04005495,163.05,163.02,6.17779443]
[1748601560217,6.17175495,163.05,163.02,6.17779443]
[1748601560510,0.04005495,163.05,163.02,6.17779443]
[1748601560711,6.1322,163.03,163.02,0.04539443]
[1748601562315,31.62005495,163.05,163.02,0.04539443]
[1748601563411,31.62005495,163.05,163.03,6.1319]
[1748601564009,37.75155495,163.05,163.02,6.17779443]
[1748601564420,37.75155495,163.05,163.02,0.04539443]
[1748601564619,37.75155495,163.05,163.02,6.17769443]
[1748601564915,37.75155495,163.05,163.02,0.04539443]
[1748601564916,6.1319,163.04,163.02,0.04539443]
[1748601565115,31.62005495,163.05,163.02,6.17799443]
[1748601565419,6.1322,163.03,163.02,0.04539443]
[1748601566921,31.62005495,163.05,163.02,0.04539443]
[1748601567737,37.75175495,163.05,163.02,0.04539443]
[1748601568515,37.75175495,163.05,163.02,6.17789443]
[1748601570122,6.1319,163.04,163.02,0.04539443]
[1748601570320,31.62005495,163.05,163.02,0.04539443]
[1748601570523,0.04005495,163.05,163.02,0.04539443]
[1748601570719,0.04005495,163.05,163.04,6.1319]
[1748601570919,0.04005495,163.05,163.02,0.04539443]
[1748601571323,0.04005495,163.05,163.04,6.1319]
[1748601574127,31.58,163.11,163.02,6.8080144]
[1748601574321,31.58,163.11,163.03,31.58]
[1748601574623,37.7094,163.11,163.03,31.58]
[1748601574819,37.7094,163.11,163.08,6.1303]
[1748601575023,6.1297,163.1,163.03,31.58]
[1748601575219,0.04510108,163.08,163.05,0.04272315]
[1748601575418,0.04510108,163.08,163.06,6.1308]
[1748601575624,0.04510108,163.08,163.05,0.04272315]
[1748601577119,0.04510108,163.08,163.07,6.1307]
[1748601578021,0.04510108,163.08,163.05,6.17402315]
[1748601578320,0.04510108,163.08,163.05,0.04272315]
[1748601578321,6.17580108,163.08,163.05,0.04272315]
[1748601579825,6.17580108,163.08,163.05,6.17412315]
[1748601580027,0.04510108,163.08,163.05,6.17412315]
[1748601580830,0.04510108,163.08,163.05,0.04272315]
[1748601581628,0.04510108,163.08,163.07,6.1307]
[1748601582927,529.58,163.13,163.1,6.1295]
[1748601582928,6.1286,163.13,163.1,6.1295]
[1748601583635,6.1289,163.12,163.09,6.1298]
[1748601583832,6.1715956,163.12,163.09,6.17089128]
[1748601584734,0.0426956,163.12,163.09,0.04109128]
[1748601585438,6.1296,163.1,163.09,0.04109128]
[1748601586238,6.1294,163.11,163.09,0.04109128]
[1748601587440,6.1716956,163.12,163.09,0.04109128]
[1748601587636,0.0426956,163.12,163.09,0.04109128]
[1748601588139,0.0426956,163.12,163.1,6.1293]
[1748601588345,0.0426956,163.12,163.09,0.04109128]
[1748601588540,0.0426956,163.12,163.1,6.1294]
[1748601588734,0.0426956,163.12,163.09,0.04109128]
[1748601589737,0.0426956,163.12,163.1,6.1296]
[1748601589933,0.0426956,163.12,163.09,0.04109128]
[1748601590441,0.0426956,163.12,163.1,6.1296]
[1748601590743,0.0426956,163.12,163.09,0.04109128]
[1748601591338,6.1717956,163.12,163.09,6.17089128]
[1748601591743,0.0426956,163.12,163.09,0.04109128]
[1748601591945,6.1293,163.11,163.09,0.04109128]
[1748601593637,6.1716956,163.12,163.09,6.17099128]
[1748601594040,0.0426956,163.12,163.09,0.04109128]
[1748601595643,6.1715956,163.12,163.09,6.17089128]
[1748601597853,0.0426956,163.12,163.09,0.04109128]
[1748601598851,0.0426956,163.12,163.11,6.1292]
[1748601599449,31.56,163.17,163.09,0.04109128]
[1748601600346,0.02458402,163.15,163.11,6.76261997]
[1748601600544,0.02458402,163.15,163.11,6.80284177]
[1748601600741,6.15238402,163.15,163.12,6.1288]
[1748601601454,0.02458402,163.15,163.13,6.1284]
[1748601602249,6.15238402,163.15,163.12,6.1287]
[1748601602546,0.02458402,163.15,163.11,0.0402218]
[1748601603350,6.15248402,163.15,163.12,6.1287]
[1748601603748,0.02458402,163.15,163.11,6.80284177]
[1748601604148,0.02458402,163.15,163.14,6.1281]
[1748601604347,0.02458402,163.15,163.11,6.80284177]
[1748601605155,0.02458402,163.15,163.12,6.1288]
[1748601605361,0.02458402,163.15,163.11,6.80284177]
[1748601605760,0.02458402,163.15,163.13,6.1283]
[1748601606459,6.15238402,163.15,163.13,6.1283]
[1748601607460,0.02458402,163.15,163.13,6.1283]
[1748601608059,0.02458402,163.15,163.12,6.1286]
[1748601608963,6.15248402,163.15,163.13,6.1285]
[1748601609255,0.02458402,163.15,163.11,0.0402218]
[1748601609662,6.1289,163.12,163.11,0.0402218]
[1748601609958,37.6889,163.12,163.11,0.0402218]
[1748601610355,31.56,163.12,163.05,6.1313]
[1748601611059,31.56,163.12,163.03,6.76261997]
[1748601611362,6.17226184,163.09,163.06,6.1723114]
[1748601612155,0.04196184,163.09,163.06,0.0412114]
[1748601613153,0.04196184,163.09,163.06,6.80383137]
[1748601613459,0.04196184,163.09,163.08,6.1304]
[1748601616960,0.04196184,163.09,163.06,68.80383137]
[1748601616961,31.54,163.15,163.12,6.1288]
[1748601617265,31.54,163.15,163.06,68.76261997]
[1748601617564,6.1282,163.14,163.06,68.76261997]
[1748601618053,0.02284398,163.12,163.08,0.04207218]
[1748601619061,0.02284398,163.12,163.11,6.1292]
[1748601619863,6.05104398,163.14,163.11,6.1292]
[1748601620271,31.54,163.15,163.08,0.04207218]
[1748601621060,6.1292,163.12,163.09,6.1299]
[1748601621857,31.54,163.15,163.08,0.04207218]
[1748601623066,6.1285,163.13,163.1,6.1296]
[1748601623266,31.54,163.15,163.1,6.1296]
[1748601623769,6.1291,163.12,163.1,6.1296]
[1748601624067,6.1291,163.12,163.08,0.04207218]
[1748601624266,6.1297,163.1,163.08,0.04207218]
[1748601625167,6.1297,163.1,163.08,6.17227218]
[1748601625368,6.1294,163.11,163.08,6.17227218]
[1748601626263,6.1297,163.1,163.08,6.17227218]
[1748601626460,31.54,163.15,163.09,6.13]
[1748601626661,31.54,163.15,163.08,0.04207218]
[1748601627071,31.54,163.15,163.06,62.0]
[1748601627268,6.1298,163.1,163.05,38.24469215]
[1748601627771,6.13,163.09,163.07,6.1305]
[1748601627971,6.13,163.09,163.05,38.24469215]
[1748601628272,0.04115138,163.09,163.07,6.1305]
[1748601628971,0.04115138,163.09,163.08,6.1304]
[1748601631974,31.54,163.14,163.08,6.1304]
[1748601631975,31.54,163.14,163.12,6.1287]
[1748601632167,31.54,163.17,163.08,6.76261997]
[1748601632972,6.1276,163.16,163.11,0.04141529]
[1748601633170,31.54,163.17,163.11,0.04141529]
[1748601634673,31.54,163.17,163.13,6.1283]
[1748601634870,31.54,163.17,163.11,0.04141529]
[1748601635272,6.128,163.15,163.12,6.1287]
[1748601635879,6.1279,163.15,163.12,6.1288]
[1748601637078,6.1279,163.15,163.11,0.04141529]
[1748601637280,6.1279,163.15,163.13,6.1285]
[1748601637486,6.1275,163.16,163.13,6.1285]
[1748601637777,31.54,163.17,163.13,6.1285]
[1748601638178,6.1274,163.16,163.13,6.1285]
[1748601638375,31.54,163.17,163.13,6.1285]
[1748601638577,6.1276,163.16,163.13,6.1285]
[1748601638777,31.54,163.17,163.13,6.1285]
[1748601639079,6.1274,163.16,163.13,6.1285]
[1748601639680,31.54,163.17,163.13,6.1285]
[1748601639869,6.1274,163.16,163.13,6.1285]
[1748601640973,6.1274,163.16,163.14,6.1281]
[1748601641175,6.1274,163.16,163.11,0.04141529]
[1748601641380,6.1274,163.16,163.13,6.1283]
[1748601641883,6.1274,163.16,163.14,6.128]
[1748601642582,6.1274,163.16,163.13,6.1283]
[1748601643585,6.1274,163.16,163.14,6.128]
[1748601643783,31.54,163.17,163.11,6.80403526]
[1748601644180,31.54,163.17,163.11,0.04141529]
[1748601644384,6.1279,163.15,163.13,6.1283]
[1748601645673,6.1274,163.16,163.14,6.1281]
[1748601646381,6.1274,163.16,163.13,6.1283]
[1748601646685,31.52,163.17,163.11,6.17051529]
[1748601646873,31.52,163.17,163.11,0.04141529]
[1748601647684,6.1289,163.12,163.11,0.04141529]
[1748601648487,37.6485,163.13,163.11,0.04141529]
[1748601649987,37.6485,163.13,163.11,6.17061529]
[1748601650381,6.1289,163.12,163.11,0.04141529]
[1748601651193,37.6486,163.13,163.11,0.04141529]
[1748601651787,31.52,163.13,163.11,0.04141529]
[1748601652395,37.6485,163.13,163.11,0.04141529]
[1748601652695,31.52,163.13,163.11,0.04141529]
[1748601653400,31.52,163.13,163.12,6.1289]
[1748601653692,31.52,163.16,163.12,6.1289]
[1748601653891,6.1279,163.15,163.12,6.1289]
[1748601656196,6.1279,163.15,163.11,0.04141529]
[1748601656395,31.52,163.16,163.11,0.04141529]
[1748601656790,31.52,163.16,163.15,6.1277]
[1748601656995,37.6464,163.19,163.12,6.76261997]
[1748601657190,31.52,163.19,163.14,0.04074809]
[1748601657390,31.52,163.19,163.15,6.1275]
[1748601657596,6.1268,163.18,163.15,6.1275]
[1748601658694,6.1271,163.17,163.14,6.16874809]
[1748601658887,31.52,163.19,163.14,0.04074809]
[1748601659492,6.1268,163.18,163.15,6.1277]
[1748601659699,31.52,163.19,163.15,6.1277]
[1748601660200,6.1272,163.17,163.15,6.1277]
[1748601660797,6.1272,163.17,163.14,6.16864809]
[1748601660995,6.1274,163.16,163.14,0.04074809]
[1748601661400,6.1274,163.16,163.14,6.16874809]
[1748601662304,6.1271,163.17,163.14,6.16874809]
[1748601662508,6.1271,163.17,163.14,0.04074809]
[1748601662713,31.52,163.19,163.14,0.04074809]
[1748601663410,31.52,163.19,163.04,31.52]
[1748601663411,8.81831997,163.18,163.04,31.52]
[1748601663602,6.1296,163.1,163.08,6.1301]
[1748601664013,6.1294,163.11,163.08,6.1301]
[1748601664408,0.04166889,163.11,163.08,0.04655706]
[1748601664599,6.1296,163.1,163.08,0.04655706]
[1748601665510,6.13,163.09,163.08,0.04655706]